Cogmind - Beta 15 @@@ ROGUE MODE // 2025.06.06 @ 18:31:44 Player: Candle Result: Destroyed by D-53 Grenadier with Mini Grenade Launcher Performance ------------- Evolutions (0) 0 Regions Visited (2) 400 Robots Destroyed (26) 130 Value Destroyed (496) 496 Prototype IDs (0) 0 Alien Tech Used (0) 0 Bonus (-12) -12 TOTAL SCORE: 1014 Bonus ------- Friendly Fire -12 Cogmind --------- Core Integrity 0/250 Matter 295/300 Energy 65/100 System Corruption 0% Temperature Cool (38) Movement Core (700) Ox13 Location -10/Mines Parts ------- > --- POWER (1) -------- (None) > --- PROPULSION (2) --- (None) > --- UTILITY (2) ------ High-capacity Storage Unit > --- WEAPON (2) ------- Medium Laser > --- INVENTORY (20) --- Ion Engine Light Ion Engine Aluminum Leg Compact Wheel Compact Wheel Hover Unit Hover Unit Huge Storage Unit Large Matter Pod (150) Visual Processing Unit Seismic Detector Advanced Targeting Computer Medium Laser Medium Laser Small Laser High-powered Shotgun Grenade Launcher Mining Laser Great Maul Peak State ------------ > --- POWER ------------ Light Nuclear Core > --- PROPULSION ------- Light Treads Light Treads > --- UTILITY ---------- High-capacity Storage Unit Hacking Suite > --- WEAPON ----------- Medium Laser Medium Laser > --- INVENTORY -------- Ion Engine Light Ion Engine Aluminum Leg Compact Wheel Compact Wheel Hover Unit Hover Unit Huge Storage Unit Large Matter Pod Visual Processing Unit Seismic Detector Advanced Targeting Computer Medium Laser Medium Laser Medium Laser Small Laser Grenade Launcher Mining Laser Hammer [Rating: 13] Favorites ----------- Power Ion Engine Engine Ion Engine Power Core Light Nuclear Core Propulsion Light Treads Treads Light Treads Utility High-capacity Storage Unit Device Seismic Detector Storage High-capacity Storage Unit Hackware Hacking Suite Weapon Medium Laser Energy Gun Medium Laser Special Weapon Mining Laser Build | -11 -10 -10 ------- Run | Yrd Mat Min Slots Evolved . | . . . Power . | . . . Propulsion . | . . . Utility . | . . . Weapon . | . . . Parts Attached 18 | 8 9 1 Power 5 | 2 2 1 Engine 4 | 2 2 . Core 1 | . . 1 Reactor . | . . . Propulsion 2 | 2 . . Treads 2 | 2 . . Leg . | . . . Wheel . | . . . Hover . | . . . Flight . | . . . Utility 5 | 2 3 . Device 1 | 1 . . Storage 3 | 1 2 . Processor . | . . . Hackware 1 | . 1 . Protection . | . . . Artifact . | . . . Weapon 6 | 2 4 . Energy Gun 5 | 2 3 . Energy Cannon . | . . . Ballistic Gun . | . . . Ballistic Cannon . | . . . Launcher . | . . . Special Weapon 1 | . 1 . Impact Weapon . | . . . Slashing Weapon . | . . . Piercing Weapon . | . . . Special Melee Weapon . | . . . Unidentified Prototypes . | . . . Parts Lost 6 | . . 6 Power 1 | . . 1 Propulsion 2 | . . 2 Utility 1 | . . 1 Weapon 2 | . . 2 Highest Loss Streak 6 | . . 6 To Critical Strikes . | . . . Average Backups 12 | 2 11 18 Power 2 | . 2 2 Propulsion 3 | 1 3 4 Utility 2 | . 2 4 Weapon 3 | . 2 7 Tool/Special . | . . . Unused Backups 15 | . 1 14 Power . | . . . Propulsion 5 | . . 5 Utility 3 | . . 3 Weapon 7 | . 1 6 Tool/Special . | . . . Average Slot Usage (%) 99 | . 99 99 Engine 11 | . 14 1 Core 2 | . . 12 Treads 27 | . 27 27 Device 8 | . 10 . Storage 14 | . 14 14 Hackware 5 | . 3 14 Energy Gun 27 | . 27 28 Peak Build Rating 13 | 7 10 13 Average Rating 8 | 5 8 11 On Entrance 5 | . 7 10 Naked Turns . | . . . Heaviest Build 50 | 14 50 49 Greatest Support 40 | 40 40 40 Greatest Overweight (x) 1 | . 1 1 Average Overweight (x) . | . . 1 Largest Inventory Capacity 25 | 8 25 20 Average Capacity 17 | 7 18 20 Most Carried 20 | 4 17 20 Average Carried 12 | 3 11 18 Final Capacity 20 | 8 20 20 Final Carried 19 | 4 17 19 Class Distribution -------------------- 100% | Mutant Dominant Class ---------------- Mutant | -10/Materials Mutant | -10/Mines Resources | -11 -10 -10 ----------- Run | Yrd Mat Min Matter Collected 563 | 290 137 136 Remotely . | . . . Salvage Created 822 | 112 627 83 Parts 45 | 5 37 3 Haulers Intercepted 2 | . 2 . Recyclers Shooed . | . . . Parts Field Recycled . | . . . Retrieved Matter . | . . . Parts Self-Destructed . | . . . Prevented . | . . . Kills | -11 -10 -10 ------- Run | Yrd Mat Min Combat Hostiles Destroyed 17 | . 15 2 Guns 17 | . 15 2 Classes Destroyed 7 | 2 5 . Tunneler 1 | 1 . . Hauler 2 | . 2 . Recycler 1 | 1 . . Operator 2 | . 2 . Watcher 3 | . 3 . Swarmer 8 | . 8 . Grunt 9 | . 7 2 Best Kill Streak 4 | 1 4 2 Combat Bots Only 3 | . 3 2 Max Kills in Single Turn 1 | 1 1 1 Gunslinging . | . . . Exploded . | . . . Melee . | . . . Uniques/NPCs Destroyed . | . . . Combat | -11 -10 -10 -------- Run | Yrd Mat Min Hostile Shots Fired 83 | . 67 16 Missed 20 | . 16 4 Hits 63 | . 51 12 Projectile 63 | . 51 12 AOE 9 | . . 9 Damage Taken 1013 | . 520 493 Core 255 | . 81 174 Absorbed by Shields . | . . . Regen/Repaired (Parts) 78 | . 78 . Core Remaining (%) 100 | 100 . . Volleys Fired 68 | 5 56 7 Largest 2 | 2 2 2 Hottest 100 | 90 100 100 Shots Fired 135 | 10 111 14 Gun 134 | 10 110 14 Cannon . | . . . Launcher . | . . . Special 1 | . 1 . Kinetic . | . . . Thermal 135 | 10 111 14 Explosive . | . . . Electromagnetic . | . . . Robot Hit Streak 16 | 2 8 16 Robot Miss Streak 8 | 1 8 1 Penetration Max . | . . . Secondary Targets 2 | . 1 1 Max Gunslinging Chain 1 | . 1 1 Shots Hit Robots 76 | 2 61 13 Core Hits 44 | 3 34 7 Critical Kills . | . . . Critical Parts Destroyed . | . . . Critical Strikes 7 | . 6 1 Burn 7 | . 6 1 Melee Attacks . | . . . Impact . | . . . Slashing . | . . . Piercing . | . . . Sneak Attacks . | . . . Combat Hostiles . | . . . Follow-up Attacks . | . . . Damage Inflicted 995 | 69 749 177 Guns 992 | 69 746 177 Cannons . | . . . Explosions . | . . . Melee . | . . . Ramming 3 | . 3 . Kinetic . | . . . Thermal 992 | 69 746 177 Explosive . | . . . Electromagnetic . | . . . Impact . | . . . Slashing . | . . . Piercing . | . . . Highest Corruption . | . . . Average Corruption . | . . . Corruption Purged . | . . . Corruption Blocked . | . . . Overload Shots . | . . . Overflow Damage . | . . . Projectiles . | . . . Explosions . | . . . Melee . | . . . Knockbacks . | . . . Impact . | . . . Kinetic . | . . . Secondary . | . . . Self-Inflicted Damage . | . . . Shots . | . . . Rammed 1 | . 1 . Targets Rammed 1 | . 1 . Kicked . | . . . Crushed . | . . . Highest Temperature 282 | 90 282 189 Average Temperature 82 | 36 86 81 Received Heat Transfer 153 | . 120 33 Effects 1 | . 1 . Energy Bleed 1 | . 1 . Siege Activations . | . . . Martial Activations . | . . . Shielding Activations . | . . . Robots Disrupted . | . . . Combat Hostiles . | . . . Robots Corrupted . | . . . Combat Hostiles . | . . . Parts Fried . | . . . Impact Corruptions . | . . . Robots Melted . | . . . Combat Hostiles . | . . . Parts Melted 8 | . 8 . Heat Transferred 3287 | 186 2509 592 Parts Sabotaged . | . . . Parts Stolen . | . . . Parts Stripped . | . . . Power Chain Reactions . | . . . Alert | -11 -10 -10 ------- Run | Yrd Mat Min Maximum Alert Level . | . . . Low Security (%) 100 | 100 100 100 Level 1 . | . . . Level 2 . | . . . Level 3 . | . . . Level 4 . | . . . Level 5 . | . . . High Security . | . . . Max Security . | . . . Peak Influence 176 | 5 176 80 Initial 30 | . . 30 Average 65 | . 81 17 Influence Increases 538 | 10 478 50 Destroy 0b10 Robot/C 340 | . 300 40 Destroy 0b10 Robot/NC 45 | 10 35 . Destroy Leader 60 | . 50 10 Successful Hack 31 | . 31 . Destroy Structure 2 | . 2 . Lose Combat Pursuer 60 | . 60 . Influence Decreases 538 | 10 401 127 Entered New Map 47 | . . 47 Time Decay 491 | 10 401 80 Squads Dispatched 2 | . 2 . Investigation . | . . . Extermination . | . . . Reinforcement 2 | . 2 . Assault . | . . . Garrison . | . . . Intercept . | . . . Searches Triggered . | . . . Construction Impeded . | . . . Haulers Reinforced . | . . . Active Scanning Responses . | . . . Cargo Convoy Interrupts . | . . . Stealth | -11 -10 -10 --------- Run | Yrd Mat Min Distress Signals 2 | . 1 1 Communications Jammed . | . . . Distress Signals . | . . . Times Spotted 31 | . 27 4 Peak Tracking Total 3 | . 3 2 Tactical Retreats 2 | . 2 . Traps | -11 -10 -10 ------- Run | Yrd Mat Min Traps Triggered 3 | . 2 1 Indirectly . | . . . Trap Hack Attempts . | . . . Triggered . | . . . Disarmed . | . . . Reprogrammed 4 | . 4 . Reused . | . . . Traps Extracted . | . . . Installed . | . . . Triggered . | . . . Machines | -11 -10 -10 ---------- Run | Yrd Mat Min Machines Disabled . | . . . Max in Single Turn . | . . . Machines Repaired . | . . . Machines Dismantled . | . . . Machines Sabotaged . | . . . Overloaded Fab Kills . | . . . Hacking | -11 -10 -10 --------- Run | Yrd Mat Min Machines Accessed 10 | . 9 1 Terminals 7 | . 7 . Fabricators . | . . . Repair Stations 1 | . 1 . Recycling Units 1 | . 1 . Scanalyzers . | . . . Garrison Access . | . . . Total Hacks 31 | . 30 1 Successful 17 | . 16 1 Failed 14 | . 14 . Catastrophic . | . . . Database Lockouts . | . . . Manual 20 | . 20 . Terminals 25 | . 25 . Fabricators . | . . . Repair Stations 2 | . 2 . Recycling Units 3 | . 3 . Scanalyzers . | . . . Garrison Access . | . . . Terminal Hacks 9 | . 8 1 Robot Analysis 2 | . 2 . Open Door 1 | . . 1 Terminal Index 1 | . 1 . Locate Traps 2 | . 2 . Reprogram Traps 1 | . 1 . Registered Components 1 | . 1 . Zone Layout 1 | . 1 . Fabricator Hacks . | . . . Repair Station Hacks 2 | . 2 . Scan Component 1 | . 1 . Repair 1 | . 1 . Recycling Unit Hacks 2 | . 2 . Report Inventory 2 | . 2 . Scanalyzer . | . . . Garrison Access Hacks . | . . . Unauthorized Hacks 4 | . 4 . Terminals 4 | . 4 . Botnet 3 | . 3 . Operators 1 | . 1 . Fabricators . | . . . Repair Stations . | . . . Recycling Units . | . . . Scanalyzers . | . . . Garrison Access . | . . . Data Cores Recovered . | . . . Used . | . . . Hacking Detections 9 | . 9 . Full Trace Events . | . . . Feedback Events . | . . . Feedback Blocked . | . . . Robot Schematics Acquired . | . . . Robots Built . | . . . Authchips . | . . . Time . | . . . Total Robot Build Rating . | . . . Part Schematics Acquired . | . . . Parts Built . | . . . Authchips . | . . . Time . | . . . Total Part Build Rating . | . . . Parts Repaired 1 | . 1 . Time 26 | . 26 . Parts Recycled . | . . . Recycled Matter . | . . . Retrieved Matter . | . . . Retrieved Components . | . . . Parts Scanalyzed . | . . . Part Schematics Acquired . | . . . Parts Damaged . | . . . Bothacking | -11 -10 -10 ------------ Run | Yrd Mat Min Used RIF Installer . | . . . Robots Hacked . | . . . Non-combat . | . . . Combat . | . . . Robot Hacks Applied . | . . . Relay Couplers Released . | . . . Fabnet Peak Effective % . | . . . Robots Rewired . | . . . Allies Hacked . | . . . Hacks Repelled . | . . . Allies | -11 -10 -10 -------- Run | Yrd Mat Min Total Allies . | . . . Largest Group . | . . . Highest-Rated Group . | . . . Highest-Rated Ally . | . . . Total Orders . | . . . Ally Attacks . | . . . Total Damage . | . . . Kills . | . . . Allies Corrupted . | . . . Allies Melted . | . . . Intel | -11 -10 -10 ------- Run | Yrd Mat Min Active Infowar (turns) 1405 | 49 1356 . Seismic 1405 | 49 1356 . Robot Analysis Total 2 | . 2 . Derelict Logs Recovered 1 | . . 1 Drone Launches . | . . . Drone Recoveries . | . . . Exploration | -11 -10 -10 ------------- Run | Yrd Mat Min Turns Passed 2406 | 159 1858 389 Spaces Moved 867 | 85 633 149 Core 13 | 13 . . Treads 854 | 72 633 149 Legs . | . . . Wheels . | . . . Hover . | . . . Flight . | . . . Fastest Speed 50 | 50 160 240 Average Speed 223 | 143 230 240 Slowest Speed 240 | 160 240 240 Overloaded Moves . | . . . Propulsion Burnouts . | . . . Robots Hopped . | . . . Potential Cave-ins . | . . . Cave-ins Triggered . | . . . Exploration Rate (%) 46 | 6 98 36 Regions Visited 2 Branch Regions 1 Pre-discovered Areas . | . . . Known Exits Taken . | . . . Unknown Exits Taken 2 | 1 1 . Scrap Searched 1 | . . 1 Spaces Dug 1 | . 1 . Terrain Destroyed 1 | . 1 . Melee . | . . . Projectile 1 | . 1 . AOE . | . . . Terrain Rammed . | . . . Walls Destroyed . | . . . Machines Disabled . | . . . Actions | -11 -10 -10 --------- Run | Yrd Mat Min Total 1189 | 109 911 169 Wait 208 | 7 198 3 Move 865 | 84 632 149 Hop . | . . . Pick Up 17 | 3 9 5 Fast Attach 9 | 7 2 . Attach 2 | 1 . 1 Detach 1 | 1 . . Swap 13 | 1 11 1 Drop 5 | . 2 3 Fire 68 | 5 56 7 Melee . | . . . Ram . | . . . Kick . | . . . Crush 1 | . 1 . Escape Stasis . | . . . Rewire . | . . . Trap . | . . . Miscellaneous . | . . . Route ------- -11/Scrapyard -10/Materials (discovered 4 exits: [*Mat x3] / *Min) -10/Mines (discovered 2 exits: [*Mat x2]) History --------- Turn | Location | Event 9 | -11/Scrapyard | Discovered new exit (range 15) 160 | -11/Scrapyard | Entered Materials 313 | -10/Materials | Build established: Mutant 796 | -10/Materials | Discovered new exit (range 8) 1204 | -10/Materials | Repaired Lgt. Treads 1366 | -10/Materials | Discovered new exit (range 15) 1551 | -10/Materials | Discovered new exit (range 14) 1874 | -10/Materials | Discovered new exit (range 16) 2018 | -10/Materials | Entered Mines 2167 | -10/Mines | Learned Materials stockpile data 2205 | -10/Mines | Discovered new exit (range 5) 2215 | -10/Mines | Discovered new exit (range 13) 2281 | -10/Mines | Met a Derelict who couldn't figure out how to use a Trap Extractor 2393 | -10/Mines | Assembled infested the area 2398 | -10/Mines | Assisted by a Guerilla fighting off Assembled 2403 | -10/Mines | Core integrity fell below 50% 2406 | -10/Mines | Core integrity fell below 20% 2407 | -10/Mines | Destroyed by D-53 Grenadier with Mini Grenade Launcher Last Messages --------------- ALERT: Infestation in the mines, dispatching Demolisher response squad. C-30 ARC bursts open, deploying its payload. D-53 Grenadier unfolds itself. A derelict emerges from the shadows: "You need to get out of here! I've been tracking a group of Assembled to figure out where they're coming from, and they're closing on this area, come on!" Lgt. Treads destroyed. Lgt. Nuclear Core destroyed. Hacking Suite destroyed. GZ-DY9(h): "I'll hold them off! Go on ahead or try to find another way!" Med. Laser destroyed. HV Slug penetrates Wall. D-53 Grenadier suffers critical hit (Destroy). D-53 Grenadier suffers critical hit (Burn). HV Slug penetrates Wall. Med. Laser destroyed. Map ----- +----------------------------------------------------+ | ???# ####### #??????????????????????????? | | ???# ##?????# #??????????????????????????? | | ???## ##??????# #??????????????????????????? | | ????## ##???????# #??????????????????????????? | | ?????## ##????????#! #??????????????????????????? | | ??????####?????????# #??????????????????????????? | | ???????????????????# #??????????????????????????? | | ?????????????####### ########???????????????????? | | ?????????????# #???????????????????? | | ?????????????# ##### #??????????????????? | | ?????????????# #???## ## #??????????????????? | | ?????????????# #????# #?# #??????????????????? | | ?????????????# #????# #??? #????????????????? | | ????????###### #????# #???? #???????????????? | | ??????### ## ####?# #????? ???????????????? | | ??????# ##? ####???? ????????????????? | | ??????# #? #????? ????????????????? | | ??????# # < #### #?????????? #????????? | | ????##### ## #??# ###??????? #????????? | | ???## ##?# ##?## ##???? #????????? | | ?### ##???####??# ##?? #?????????? | | ## ##?????????## ## #??????????? | | # #?????????## ##?????????? | | # #?????????# #?????????? | | ## ### #????????## #????????? | | ?####?## #???????## @ #???????? | | ???????# ########;h ???????? | | ?####### % d """" ???????? | | ## "## %% d """? ????????? | | # [!^#X ######### # """?????????????? | | #"! < ##??????## ##? ?????????????? | | #" !/ ##??????## #?? ????????????? | | #" # #???????## #???## ???????????? | | ## # #????????## ##?????? ???????????? | | ?#### #?????????#####???????? ???????????? | | ????## ##??????????????????????????????????? | | ?????#########???????????????????????????????????? | | ?????????????????????????????????????????????????? | | ?????????????????????????????????????????????????? | | ?????????????????????????????????????????????????? | | ?????????????????????????????????????????????????? | | | | | | | | | | | | | | | | | | | +----------------------------------------------------+ Best States ------------- Heat Dissipation 25 Energy Generation 14 Energy Capacity 250 Matter Stores 300 Matter Capacity 300 Sight Range 16 Terrain Scan Density 10 Evasion (%) 50 Recoil Reduction 2 Offensive Hacking 10 Item Schematics ----------------- None Robot Schematics ------------------ None Fabricated ------------ Nothing Repaired ---------- Lgt. Treads | 44% | -10/Materials Alien Tech Used ----------------- None Achievements -------------- None Challenges ------------ None Game ------ Seed ChromionMeleeFilter Manual? 0 Play Time 00:16:10 Cumulative 122.9 hours Start 2025.06.06 @ 17:57:29 End 2025.06.06 @ 18:31:44 Sessions 1 Manual Loads 0 Difficulty Rogue Special Mode None Game No. 157 Rogue 157 Adventurer 0 Explorer 0 Win Type - Total 0 Types 0/0/0/0/0/0/0/0/0/0 Lore% 40 Gallery% 37 Achievement% 33 Wizard Run 0 Options --------- Layout 1 ASCII 0 Keyboard 0 Movement Mouse Keybinds 0 Fullscreen 1 Font 32/SmallcapsGlow Map View 50x40 Zoom Use 0% Tactical HUD 0 Map Filters NONE Filters NONE Steam 1 RUN: 8963ce9b-e022-427d-871a-c15d36c98eec